fUSD/lending_fUSD_20240518
["ID","MTS","AMOUNT","RATE_DAILY","PERIOD"]
[327341423,1715998247419,-151.0,0.00039,14]
[327341424,1715998247428,-151.0,0.00039,14]
[327341425,1715998247437,-151.0,0.00039,14]
[327341426,1715998247447,-151.0,0.00039,14]
[327341427,1715998247456,-151.0,0.00039,14]
[327341428,1715998247465,-160.673059,0.00039,14]
[327341429,1715998247474,-151.0,0.00039,2]
[327341430,1715998247483,-151.0,0.00039,14]
[327341431,1715998247493,-151.0,0.00039,14]
[327341432,1715998247506,-151.0,0.00039,14]
[327341433,1715998247515,-151.0,0.00039,14]
[327341434,1715998247525,-163.011796,0.00039,14]
[327341435,1715998247534,-163.011796,0.00039,14]
[327341436,1715998247546,-913.0,0.00039197,20]
[327341437,1715998247555,-1200.0,0.0003921,10]
[327341438,1715998247564,-800.0,0.0003921,10]
[327341439,1715998247575,-150.0,0.00039654,2]
[327341440,1715998247584,-5000.0,0.00039668,3]
[327341441,1715998247594,-500.0,0.00039758,10]
[327341442,1715998247603,-4300.0,0.00039758,10]
[327341443,1715998247612,-4500.0,0.00039758,10]
[327341444,1715998247622,-1152.03818691,0.0003984,10]
[327341445,1715998247631,-309.64,0.0003987,2]
[327341446,1715998247641,-449.74,0.0003987,2]
[327341447,1715998247650,-4067.31116389,0.0004,4]
[327341448,1715998247659,-838.72823896,0.0004,4]
[327341449,1715998247668,-49938.90525394,0.0004,4]
[327341450,1715998247678,-288.4433476,0.0004,120]
[327341451,1715998247687,-379.17093242,0.0004,30]
[327341452,1715998247697,-155.13313373,0.0004,120]
[327341453,1715998247706,-435.42045953,0.0004,2]
[327341454,1715998247715,-155.0,0.0004,4]
[327341455,1715998247724,-3579.3296358,0.0004,20]
[327341456,1715998247734,-10681.4315362,0.0004,120]
[327341457,1715998247743,-2110.0,0.0004,15]
[327341458,1715998247752,-970.0,0.0004,120]
[327341459,1715998247762,-2273.859999,0.0004,120]
[327341460,1715998247771,-326.0,0.0004,30]
[327341461,1715998247780,-360.71654974,0.0004,120]
[327341462,1715998247790,-489.92917743,0.0004,120]
[327341463,1715998247799,-173.40067668,0.0004,30]
[327341464,1715998247808,-790.36,0.0004,120]
[327341465,1715998247818,-392.36635111,0.0004001,30]
[327341466,1715998247828,-215.0,0.0004005,2]
[327341467,1715998247837,-1200.0,0.00040306,10]
[327341468,1715998247846,-800.0,0.00040306,10]
[327341469,1715998247855,-150.0,0.00040375,2]
[327341470,1715998247865,-2262.53949,0.00040446,2]
[327341471,1715998247874,-300.82385182,0.0004048,60]
[327341472,1715998247883,-2110.0,0.000405,15]
[327341473,1715998247892,-182014.05806,0.00040581,7]
[327341474,1715998247901,-354.12,0.00040673,2]
[327341475,1715998247911,-500.0,0.00040854,10]
[327341476,1715998247920,-4300.0,0.00040854,10]
[327341477,1715998247929,-4500.0,0.00040854,10]
[327341478,1715998247939,-3944.75297171,0.00040993,15]
[327341479,1715998247948,-2123.63,0.00041,15]
[327341480,1715998247957,-168.81992441,0.00041,60]
[327341481,1715998247966,-2000.0,0.00041095,30]
[327341482,1715998247977,-2000.0,0.00041095,30]
[327341483,1715998247987,-2000.0,0.00041095,30]
[327341484,1715998247997,-2000.0,0.00041095,30]
[327341485,1715998248006,-2000.0,0.00041095,30]
[327341486,1715998248015,-2000.0,0.00041095,30]
[327341487,1715998248024,-2000.0,0.00041095,30]
[327341488,1715998248033,-891.31378391,0.00041095,30]
[327341489,1715998248042,-157.0,0.00041096,2]
[327341490,1715998248052,-2500.0,0.00041096,30]
[327341491,1715998248061,-150.0,0.00041096,2]
[327341492,1715998248071,-1910.25115006,0.00041122,2]
[327341493,1715998248080,-151.25,0.00041309,2]
[327341494,1715998248089,-1200.0,0.00041402,30]
[327341495,1715998248099,-800.0,0.00041402,30]
[327341496,1715998248108,-301.87985111,0.000415,60]
[327341497,1715998248147,-447127.32706261,0.000418,30]
[327341498,1715998248164,-52872.67293739,0.000418,30]
[327341499,1715998248173,-215.0,0.000418,2]
[327341500,1715998248183,-151.0,0.000418,14]
[327341501,1715998248192,-237.597027,0.000418,14]
[327341502,1715998248202,-151.0,0.000418,14]
[327341503,1715998248211,-151.0,0.000418,14]
[327341504,1715998248221,-205.179839,0.000418,14]
[327341505,1715998248230,-151.0,0.000418,14]
[327341506,1715998248239,-151.0,0.000418,14]
[327341507,1715998248248,-151.0,0.000418,14]
[327341508,1715998248258,-151.0,0.000418,14]
[327341509,1715998248267,-151.0,0.000418,14]
[327341510,1715998248276,-151.0,0.000418,14]
[327341511,1715998248285,-151.0,0.000418,14]
[327341512,1715998248294,-151.0,0.000418,14]
[327341513,1715998248303,-151.0,0.000418,14]
[327341514,1715998248313,-151.0,0.000418,14]
[327341515,1715998248323,-168.037798,0.000418,14]
[327341516,1715998248333,-151.0,0.000418,14]
[327341517,1715998248342,-151.0,0.000418,14]
[327341518,1715998248352,-151.0,0.000418,14]
[327341519,1715998248361,-151.0,0.000418,14]
[327341520,1715998248370,-151.0,0.000418,14]
[327341521,1715998248379,-151.0,0.000418,2]
[327341522,1715998248388,-151.0,0.000418,14]
[327341523,1715998248398,-156.478845,0.000418,14]
[327341524,1715998248407,-151.0,0.000418,14]
[327341525,1715998248416,-151.0,0.000418,14]
[327341526,1715998248424,-163.011796,0.000418,14]
[327341527,1715998248434,-163.011796,0.000418,14]
[327341528,1715998248443,-1035.0,0.0004184,30]
[327341529,1715998248452,-419.16225513,0.000419,111]
[327341530,1715998248461,-1200.0,0.0004195,30]
[327341531,1715998248470,-500.0,0.0004195,30]
[327341532,1715998248479,-4300.0,0.0004195,30]
[327341533,1715998248488,-800.0,0.0004195,30]
[327341534,1715998248499,-4500.0,0.0004195,30]
[327341535,1715998248509,-37368.32478892,0.00042,30]
[327341536,1715998248519,-27261.18412203,0.00042,10]
[327341537,1715998248528,-490.12307429,0.00042,120]
[327341538,1715998248537,-156.06875008,0.00042,120]
[327341539,1715998248548,-1200.0,0.00042498,30]
[327341540,1715998248557,-500.0,0.00042498,30]
[327341541,1715998248566,-4300.0,0.00042498,30]
[327341542,1715998248576,-800.0,0.00042498,30]
[327341543,1715998248585,-4500.0,0.00042498,30]
[327341544,1715998248595,-2725.0,0.000427,92]
[327341545,1715998248605,-354.12,0.00042937,2]
[327341546,1715998248614,-1199.0,0.00043,120]
[327341547,1715998248623,-357.34086525,0.00043,120]
[327341548,1715998248632,-472.23678054,0.00043,30]
[327341549,1715998248641,-159369.17201041,0.00043,60]
[327341550,1715998248651,-1200.0,0.00043046,30]
[327341551,1715998248660,-500.0,0.00043046,30]
[327341552,1715998248669,-4300.0,0.00043046,30]
[327341553,1715998248678,-800.0,0.00043046,30]
[327341554,1715998248687,-4500.0,0.00043046,30]
[327341555,1715998248697,-158.04094423,0.00043317,11]
[327341556,1715998248706,-215.0,0.0004355,2]
[327341557,1715998248715,-1200.0,0.00043594,30]
[327341558,1715998248724,-500.0,0.00043594,30]
[327341559,1715998248733,-4300.0,0.00043594,30]
[327341560,1715998248742,-800.0,0.00043594,30]
[327341561,1715998248751,-4500.0,0.00043594,30]
[327341562,1715998248759,-2000.0,0.000438,2]
[327341563,1715998248769,-528.71930793,0.00043835,30]
[327341564,1715998248778,-500.0,0.00043835,30]
[327341565,1715998248787,-514.07498865,0.00043835,30]
[327341566,1715998248796,-500.0,0.00043835,30]
[327341567,1715998248806,-500.0,0.00043835,30]
[327341568,1715998248815,-500.0,0.00043835,30]
[327341569,1715998248826,-500.0,0.00043835,30]
[327341570,1715998248835,-500.0,0.00043835,30]
[327341571,1715998248844,-506.42226238,0.00043835,30]
[327341572,1715998248854,-513.47554924,0.00043835,30]
[327341573,1715998248863,-567.97829664,0.00043835,30]
[327341574,1715998248873,-500.0,0.00043835,30]
[327341575,1715998248882,-500.0,0.00043835,30]
[327341576,1715998248892,-505.7484985,0.00043835,30]
[327341577,1715998248901,-640.21922839,0.00043835,30]
[327341578,1715998248910,-500.0,0.00043835,30]
[327341579,1715998248919,-528.25835721,0.00043835,30]
[327341580,1715998248928,-514.01984436,0.00043835,30]
[327341581,1715998248938,-500.0,0.00043835,30]
[327341582,1715998248947,-500.0,0.00043835,30]
[327341583,1715998248956,-514.00801406,0.00043835,30]
[327341584,1715998248965,-500.0,0.00043835,30]
[327341585,1715998248975,-507.37994669,0.00043835,30]
[327341586,1715998248985,-507.42589977,0.00043835,30]
[327341587,1715998248995,-507.87423758,0.00043835,30]
[327341588,1715998249004,-506.56416578,0.00043835,30]
[327341589,1715998249013,-500.0,0.00043835,30]
[327341590,1715998249023,-500.0,0.00043835,30]
[327341591,1715998249032,-516.83531251,0.00043835,30]
[327341592,1715998249041,-192.18776533,0.00043835,30]
[327341593,1715998249051,-500.0,0.00043835,30]
[327341594,1715998249060,-506.90831086,0.00043835,30]
[327341595,1715998249069,-502.37094064,0.00043835,30]
[327341596,1715998249079,-512.0405592,0.00043835,30]
[327341597,1715998249088,-500.0,0.00043835,30]
[327341598,1715998249097,-516.67215682,0.00043835,30]
[327341599,1715998249106,-562.85333255,0.00043835,30]
[327341600,1715998249116,-507.92257043,0.00043835,30]
[327341601,1715998249126,-500.0,0.00043835,30]
[327341602,1715998249134,-538.4561704,0.00043835,30]
[327341603,1715998249144,-500.0,0.00043835,30]
[327341604,1715998249153,-516.96710462,0.00043835,30]
[327341605,1715998249163,-500.0,0.00043835,30]
[327341606,1715998249173,-552.91626737,0.00043835,30]
[327341607,1715998249182,-500.0,0.00043835,30]
[327341608,1715998249191,-506.97298787,0.00043835,30]
[327341609,1715998249200,-488.55055808,0.00043835,30]
[327341610,1715998249210,-500.0,0.00043835,30]
[327341611,1715998249219,-1512.18367046,0.00043835,30]
[327341612,1715998249229,-500.0,0.00043835,30]
[327341613,1715998249238,-500.0,0.00043835,30]
[327341614,1715998249248,-500.0,0.00043835,30]
[327341615,1715998249257,-507.12066594,0.00043835,30]
[327341616,1715998249266,-500.0,0.00043835,30]
[327341617,1715998249275,-500.0,0.00043835,30]
[327341618,1715998249285,-635.53381204,0.00043835,30]
[327341619,1715998249295,-500.0,0.00043835,30]
[327341620,1715998249304,-500.0,0.00043835,30]
[327341621,1715998249313,-500.0,0.00043835,30]
[327341622,1715998249322,-500.0,0.00043835,30]
[327341623,1715998249332,-507.2217964,0.00043835,30]
[327341624,1715998249341,-500.0,0.00043835,30]
[327341625,1715998249350,-524.75724533,0.00043835,30]
[327341626,1715998249359,-500.0,0.00043835,30]
[327341627,1715998249371,-504.67787613,0.00043835,30]
[327341628,1715998249380,-538.19682613,0.00043835,30]
[327341629,1715998249389,-500.0,0.00043835,30]
[327341630,1715998249399,-500.0,0.00043835,30]
[327341631,1715998249408,-505.26601339,0.00043835,30]
[327341632,1715998249417,-150.0,0.00043835,30]
[327341633,1715998249427,-500.0,0.00043835,30]
[327341634,1715998249435,-504.32779666,0.00043835,30]
[327341635,1715998249444,-2945.44039633,0.00043835,30]
[327341636,1715998249454,-505.2517372,0.00043835,30]
[327341637,1715998249463,-503.44276935,0.00043835,30]
[327341638,1715998249472,-516.93480166,0.00043835,30]
[327341639,1715998249482,-500.0,0.00043835,30]
[327341640,1715998249491,-500.0,0.00043835,30]
[327341641,1715998249504,-504.70871235,0.00043835,30]
[327341642,1715998249513,-500.0,0.00043835,30]
[327341643,1715998249522,-500.0,0.00043835,30]
[327341644,1715998249532,-500.0,0.00043835,30]
[327341645,1715998249542,-500.0,0.00043835,30]
[327341646,1715998249552,-486.35142732,0.00043835,30]
[327341647,1715998249562,-524.55720224,0.00043835,30]
[327341648,1715998249572,-500.0,0.00043835,30]
[327341649,1715998249584,-510.16921719,0.00043835,30]
[327341650,1715998249594,-500.0,0.00043835,30]
[327341651,1715998249604,-506.01497642,0.00043835,30]
[327341652,1715998249613,-500.0,0.00043835,30]
[327341653,1715998249622,-500.0,0.00043835,30]
[327341654,1715998249631,-500.0,0.00043835,30]
[327341655,1715998249642,-505.93082891,0.00043835,30]
[327341656,1715998249651,-537.7796975,0.00043835,30]
[327341657,1715998249660,-500.0,0.00043835,30]
[327341658,1715998249670,-500.0,0.00043835,30]
[327341659,1715998249680,-519.23144434,0.00043835,30]
[327341660,1715998249689,-500.0,0.00043835,30]
[327341661,1715998249699,-500.0,0.00043835,30]
[327341662,1715998249708,-500.0,0.00043835,30]
[327341663,1715998249718,-500.0,0.00043835,30]
[327341664,1715998249727,-500.0,0.00043835,30]
[327341665,1715998249737,-500.0,0.00043835,30]
[327341666,1715998249746,-500.0,0.00043835,30]
[327341667,1715998249755,-500.0,0.00043835,30]
[327341668,1715998249764,-252.16446097,0.00043835,30]
[327341669,1715998249774,-455.80704973,0.00043835,30]
[327341670,1715998249783,-500.0,0.00043835,30]
[327341671,1715998249793,-525.4544133,0.00043835,30]
[327341672,1715998249802,-150.0,0.00043835,30]
[327341673,1715998249812,-500.0,0.00043835,30]
[327341674,1715998249821,-500.0,0.00043835,30]
[327341675,1715998249831,-500.0,0.00043835,30]
[327341676,1715998249841,-500.0,0.00043835,30]
[327341677,1715998249850,-500.0,0.00043835,30]
[327341678,1715998249859,-500.0,0.00043835,30]
[327341679,1715998249868,-508.02542292,0.00043835,30]
[327341680,1715998249877,-506.54099257,0.00043835,30]
[327341681,1715998249887,-500.0,0.00043835,30]
[327341682,1715998249896,-512.50611661,0.00043835,30]
[327341683,1715998249906,-333.2630857,0.00043835,30]
[327341684,1715998249916,-563.1645087,0.00043835,30]
[327341685,1715998249925,-500.0,0.00043835,30]
[327341686,1715998249936,-506.74743624,0.00043835,30]
[327341687,1715998249945,-506.3228463,0.00043835,30]
[327341688,1715998249955,-500.0,0.00043835,30]
[327341689,1715998249964,-506.02276949,0.00043835,30]
[327341690,1715998249973,-500.0,0.00043835,30]
[327341691,1715998249982,-500.0,0.00043835,30]
[327341692,1715998249992,-500.0,0.00043835,30]
[327341693,1715998250001,-500.0,0.00043835,30]
[327341694,1715998250010,-264.13759045,0.00043835,30]
[327341695,1715998250020,-500.0,0.00043835,30]
[327341696,1715998250029,-500.0,0.00043835,30]
[327341697,1715998250038,-500.0,0.00043835,30]
[327341698,1715998250049,-500.0,0.00043835,30]
[327341699,1715998250059,-295.21600409,0.00043835,30]
[327341700,1715998250069,-500.0,0.00043835,30]
[327341701,1715998250079,-256.01483068,0.00043835,30]
[327341702,1715998250091,-500.0,0.00043835,30]
[327341703,1715998250100,-500.0,0.00043835,30]
[327341704,1715998250110,-514.30452581,0.00043835,30]
[327341705,1715998250120,-632.34784898,0.00043835,30]
[327341706,1715998250131,-507.57836006,0.00043835,30]
[327341707,1715998250140,-500.0,0.00043835,30]
[327341708,1715998250150,-500.0,0.00043835,30]
[327341709,1715998250159,-510.85430967,0.00043835,30]
[327341710,1715998250169,-500.0,0.00043835,30]
[327341711,1715998250178,-500.0,0.00043835,30]
[327341712,1715998250187,-500.0,0.00043835,30]
[327341713,1715998250197,-500.0,0.00043835,30]
[327341714,1715998250206,-518.01342106,0.00043835,30]
[327341715,1715998250216,-500.0,0.00043835,30]
[327341716,1715998250225,-513.47133857,0.00043835,30]
[327341717,1715998250234,-500.0,0.00043835,30]
[327341718,1715998250243,-500.0,0.00043835,30]
[327341719,1715998250253,-557.4363924,0.00043835,30]
[327341720,1715998250262,-168.28926083,0.00043835,30]
[327341721,1715998250272,-538.21819791,0.00043835,30]
[327341722,1715998250281,-511.68392767,0.00043835,30]
[327341723,1715998250291,-518.28679307,0.00043835,30]
[327341724,1715998250300,-500.0,0.00043835,30]
[327341725,1715998250309,-512.79268435,0.00043835,30]
[327341726,1715998250319,-500.0,0.00043835,30]
[327341727,1715998250329,-510.69018001,0.00043835,30]
[327341728,1715998250338,-500.0,0.00043835,30]
[327341729,1715998250347,-500.0,0.00043835,30]
[327341730,1715998250356,-500.0,0.00043835,30]
[327341731,1715998250366,-505.98791538,0.00043835,30]
[327341732,1715998250375,-500.0,0.00043835,30]
[327341733,1715998250388,-500.0,0.00043835,30]
[327341734,1715998250399,-500.0,0.00043835,30]
[327341735,1715998250410,-500.0,0.00043835,30]
[327341736,1715998250421,-500.0,0.00043835,30]
[327341737,1715998250432,-533.84663663,0.00043835,30]
[327341738,1715998250441,-520.41456218,0.00043835,30]
[327341739,1715998250450,-527.89352129,0.00043835,30]
[327341740,1715998250460,-500.0,0.00043835,30]
[327341741,1715998250469,-500.0,0.00043835,30]
[327341742,1715998250478,-523.47948217,0.00043835,30]
[327341743,1715998250487,-500.0,0.00043835,30]
[327341744,1715998250499,-500.0,0.00043835,30]
[327341745,1715998250510,-500.0,0.00043835,30]
[327341746,1715998250520,-500.0,0.00043835,30]
[327341747,1715998250530,-503.31256693,0.00043835,30]
[327341748,1715998250540,-500.0,0.00043835,30]
[327341749,1715998250549,-538.51236108,0.00043835,30]
[327341750,1715998250559,-256.96770104,0.00043835,30]
[327341751,1715998250570,-514.74732299,0.00043835,30]
[327341752,1715998250584,-515.93934802,0.00043835,30]
[327341753,1715998250594,-500.0,0.00043835,30]
[327341754,1715998250605,-423.5856955,0.00043835,30]
[327341755,1715998250616,-500.0,0.00043835,30]
[327341756,1715998250626,-500.0,0.00043835,30]
[327341757,1715998250636,-502.90527337,0.00043835,30]
[327341758,1715998250649,-500.0,0.00043835,30]
[327341759,1715998250661,-500.0,0.00043835,30]
[327341760,1715998250673,-510.11841835,0.00043835,30]
[327341761,1715998250683,-500.0,0.00043835,30]
[327341762,1715998250692,-500.0,0.00043835,30]
[327341763,1715998250704,-500.0,0.00043835,30]
[327341764,1715998250713,-504.23618454,0.00043835,30]
[327341765,1715998250723,-500.0,0.00043835,30]
[327341766,1715998250732,-500.0,0.00043835,30]
[327341767,1715998250742,-500.0,0.00043835,30]
[327341768,1715998250752,-500.0,0.00043835,30]
[327341769,1715998250761,-500.0,0.00043835,30]
[327341770,1715998250771,-500.0,0.00043835,30]
[327341771,1715998250780,-500.0,0.00043835,30]
[327341772,1715998250790,-500.0,0.00043835,30]
[327341773,1715998250801,-505.29996359,0.00043835,30]
[327341774,1715998250810,-500.0,0.00043835,30]
[327341775,1715998250820,-500.0,0.00043835,30]
[327341776,1715998250829,-496.77351865,0.00043835,30]
[327341777,1715998250839,-500.0,0.00043835,30]
[327341778,1715998250849,-500.0,0.00043835,30]
[327341779,1715998250858,-500.0,0.00043835,30]
[327341780,1715998250868,-500.0,0.00043835,30]
[327341781,1715998250879,-507.71863631,0.00043835,30]
[327341782,1715998250889,-528.24324965,0.00043835,30]
[327341783,1715998250900,-574.2940835,0.00043835,30]
[327341784,1715998250910,-500.0,0.00043835,30]
[327341785,1715998250919,-500.0,0.00043835,30]
[327341786,1715998250930,-511.47289057,0.00043835,30]
[327341787,1715998250939,-500.0,0.00043835,30]
[327341788,1715998250952,-500.0,0.00043835,30]
[327341789,1715998250962,-500.0,0.00043835,30]
[327341790,1715998250972,-500.0,0.00043835,30]
[327341791,1715998251082,-500.0,0.00043835,30]
[327341792,1715998251093,-500.0,0.00043835,30]
[327341793,1715998251102,-518.61540436,0.00043835,30]
[327341794,1715998251115,-500.0,0.00043835,30]
[327341795,1715998251125,-500.0,0.00043835,30]
[327341796,1715998251136,-500.0,0.00043835,30]
[327341797,1715998251146,-592.37808234,0.00043835,7]
[327341798,1715998251155,-500.0,0.00043835,30]
[327341799,1715998251166,-500.0,0.00043835,30]
[327341800,1715998251176,-500.0,0.00043835,30]
[327341801,1715998251186,-505.66949152,0.00043835,30]
[327341802,1715998251196,-500.0,0.00043835,30]
[327341803,1715998251206,-500.0,0.00043835,30]
[327341804,1715998251216,-504.33367457,0.00043835,30]
[327341805,1715998251225,-500.0,0.00043835,30]
[327341806,1715998251234,-500.0,0.00043835,30]
[327341807,1715998251244,-500.0,0.00043835,30]
[327341808,1715998251254,-510.20031965,0.00043835,30]
[327341809,1715998251264,-513.32797552,0.00043835,30]
[327341810,1715998251273,-500.0,0.00043835,30]
[327341811,1715998251283,-500.0,0.00043835,30]
[327341812,1715998251294,-500.0,0.00043835,30]
[327341813,1715998251303,-512.62890045,0.00043835,30]
[327341814,1715998251312,-500.0,0.00043835,30]
[327341815,1715998251323,-500.0,0.00043835,30]
[327341816,1715998251333,-589.08295551,0.00043835,30]
[327341817,1715998251342,-500.0,0.00043835,30]
[327341818,1715998251352,-503.62419339,0.00043835,30]
[327341819,1715998251362,-500.0,0.00043835,30]
[327341820,1715998251373,-508.07523868,0.00043835,30]
[327341821,1715998251384,-514.62786895,0.00043835,30]
[327341822,1715998251395,-530.01663715,0.00043835,30]
[327341823,1715998251404,-553.60748636,0.00043835,30]
[327341824,1715998251413,-500.0,0.00043835,30]
[327341825,1715998251423,-500.0,0.00043835,30]
[327341826,1715998251433,-272.33458736,0.00043835,30]
[327341827,1715998251442,-163.09358917,0.00043835,30]
[327341828,1715998251451,-1011.18414953,0.00043835,30]
[327341829,1715998251460,-500.0,0.00043835,30]
[327341830,1715998251470,-532.02443344,0.00043835,30]
[327341831,1715998251479,-500.0,0.00043835,30]
[327341832,1715998251489,-527.60946629,0.00043835,30]
[327341833,1715998251503,-195.11877721,0.00043835,30]
[327341834,1715998251512,-500.0,0.00043835,30]
[327341835,1715998251521,-500.0,0.00043835,30]
[327341836,1715998251530,-507.44227919,0.00043835,30]
[327341837,1715998251539,-500.0,0.00043835,30]
[327341838,1715998251549,-500.0,0.00043835,30]
[327341839,1715998251558,-500.0,0.00043835,30]
[327341840,1715998251567,-621.31807311,0.00043835,30]
[327341841,1715998251578,-500.0,0.00043835,30]
[327341842,1715998251587,-514.89489309,0.00043835,30]
[327341843,1715998251597,-520.47913386,0.00043835,30]
[327341844,1715998251606,-522.98093364,0.00043835,30]
[327341845,1715998251615,-507.79188081,0.00043835,30]
[327341846,1715998251624,-505.48384879,0.00043835,30]
[327341847,1715998251633,-511.6302912,0.00043835,30]
[327341848,1715998251643,-521.59519884,0.00043835,30]
[327341849,1715998251652,-515.47500731,0.00043835,30]
[327341850,1715998251662,-505.38423805,0.00043835,30]
[327341851,1715998251671,-500.0,0.00043835,30]
[327341852,1715998251681,-402.71732871,0.00043835,30]
[327341853,1715998251690,-500.0,0.00043835,30]
[327341854,1715998251700,-508.31683592,0.00043835,30]
[327341855,1715998251709,-527.94512584,0.00043835,30]
[327341856,1715998251717,-500.0,0.00043835,30]
[327341857,1715998251727,-513.7569513,0.00043835,30]
[327341858,1715998251735,-500.0,0.00043835,30]
[327341859,1715998251744,-328.35809737,0.00043835,30]
[327341860,1715998251753,-500.0,0.00043835,30]
[327341861,1715998251762,-500.0,0.00043835,30]
[327341862,1715998251772,-500.0,0.00043835,30]
[327341863,1715998251781,-619.0957588,0.00043835,30]
[327341864,1715998251790,-500.0,0.00043835,30]
[327341865,1715998251800,-506.86003059,0.00043835,30]
[327341866,1715998251809,-382.83390973,0.00043835,30]
[327341867,1715998251819,-500.0,0.00043835,30]
[327341868,1715998251828,-500.0,0.00043835,30]
[327341869,1715998251837,-500.0,0.00043835,31]
[327341870,1715998251847,-155.36651191,0.00043835,32]
[327341871,1715998251857,-500.0,0.00043835,30]
[327341872,1715998251866,-500.0,0.00043835,30]
[327341873,1715998251875,-500.0,0.00043835,30]
[327341874,1715998251885,-500.0,0.00043835,30]
[327341875,1715998251894,-500.0,0.00043835,30]
[327341876,1715998251903,-518.16161414,0.00043835,30]
[327341877,1715998251912,-500.0,0.00043835,30]
[327341878,1715998251921,-500.0,0.00043835,30]
[327341879,1715998251931,-500.0,0.00043835,31]
[327341880,1715998251940,-497.26266594,0.00043835,32]
[327341881,1715998251949,-500.0,0.00043835,30]
[327341882,1715998251958,-500.0,0.00043835,30]
[327341883,1715998251967,-500.0,0.00043835,30]
[327341884,1715998251976,-500.0,0.00043835,30]
[327341885,1715998251986,-550.83088012,0.00043835,30]
[327341886,1715998251995,-500.0,0.00043835,30]
[327341887,1715998252005,-500.0,0.00043835,30]
[327341888,1715998252014,-523.14522717,0.00043835,30]
[327341889,1715998252023,-500.0,0.00043835,30]
[327341890,1715998252033,-500.0,0.00043835,30]
[327341891,1715998252042,-500.0,0.00043835,30]
[327341892,1715998252051,-500.0,0.00043835,30]
[327341893,1715998252061,-642.90962391,0.00043835,30]
[327341894,1715998252070,-516.65468749,0.00043835,30]
[327341895,1715998252080,-500.0,0.00043835,30]
[327341896,1715998252089,-500.0,0.00043835,30]
[327341897,1715998252099,-202.11118492,0.00043835,30]
[327341898,1715998252108,-550.33663832,0.00043835,30]
[327341899,1715998252119,-521.10674633,0.00043835,30]
[327341900,1715998252128,-500.0,0.00043835,30]
[327341901,1715998252137,-509.51612188,0.00043835,30]
[327341902,1715998252146,-539.48643098,0.00043835,30]
[327341903,1715998252156,-500.0,0.00043835,30]
[327341904,1715998252166,-500.0,0.00043835,30]
[327341905,1715998252176,-522.0063909,0.00043835,30]
[327341906,1715998252185,-522.08705525,0.00043835,30]
[327341907,1715998252194,-500.0,0.00043835,30]
[327341908,1715998252204,-599.03513485,0.00043835,30]
[327341909,1715998252213,-584.37398023,0.00043835,30]
[327341910,1715998252222,-548.32604112,0.00043835,30]
[327341911,1715998252231,-514.14792192,0.00043835,30]
[327341912,1715998252240,-291.98505748,0.00043835,30]
[327341913,1715998252249,-529.23159777,0.00043835,30]
[327341914,1715998252258,-526.95585924,0.00043835,30]
[327341915,1715998252267,-582.06222327,0.00043835,30]
[327341916,1715998252276,-500.0,0.00043835,30]
[327341917,1715998252286,-500.0,0.00043835,30]
[327341918,1715998252295,-518.98605253,0.00043835,30]
[327341919,1715998252304,-550.22912792,0.00043835,30]
[327341920,1715998252313,-521.74832874,0.00043835,30]
[327341921,1715998252322,-512.40262269,0.00043835,30]
[327341922,1715998252331,-500.0,0.00043835,30]